bitfinex/quotes_SOLUSD_20250902
["timestamp","ask_amount","ask_price","bid_price","bid_amount"]
[1756836380275,57.6368611,204.22,204.21,0.1]
[1756836380499,83.92118424,204.22,204.21,1e-08]
[1756836380649,0.28432314,204.18,204.16,1e-08]
[1756836380847,52.30450419,204.17,204.16,1e-08]
[1756836381151,57.9223834,204.17,204.16,1e-08]
[1756836381558,0.28432314,204.16,204.05,26.0]
[1756836381757,0.28432314,204.16,204.04,12.16018105]
[1756836381758,12.16018105,204.09,204.04,12.16018105]
[1756836381964,39.88,204.09,204.03,30.90121266]
[1756836382274,12.16018105,204.1,204.03,4.90121266]
[1756836382482,52.04018105,204.09,204.01,4.9017205]
[1756836382676,52.02018105,204.09,204.01,4.9017205]
[1756836382869,52.02018105,204.09,204.04,12.16018105]
[1756836383069,39.86,204.1,204.03,4.90124001]
[1756836383386,4.89811912,204.16,204.03,4.90124001]
[1756836383387,39.86,204.12,204.09,12.16018105]
[1756836383574,12.16018105,204.14,204.09,12.16018105]
[1756836383755,39.86,204.13,204.1,12.16018105]
[1756836384152,39.86,204.13,204.09,0.68]
[1756836384375,26.0,204.17,204.1,12.16018105]
[1756836384577,52.00018105,204.16,204.09,0.68]
[1756836384785,52.00018105,204.16,204.1,12.16018105]
[1756836384955,44.73812789,204.16,204.1,12.16018105]
[1756836385156,56.89830894,204.16,204.1,12.16018105]
[1756836385378,12.16018105,204.15,204.09,0.68]
[1756836385569,12.16018105,204.13,204.08,12.16018105]
[1756836385774,51.98018105,204.13,204.08,12.16018105]
[1756836386164,39.82,204.13,204.08,12.16018105]
[1756836386365,39.8,204.13,204.1,12.16018105]
[1756836386582,12.16018105,204.14,204.09,12.16018105]
[1756836386784,0.28432314,204.22,204.09,12.16018105]
[1756836386785,12.24159578,204.23,204.13,12.16018105]
[1756836386984,12.16018105,204.18,204.13,12.16018105]
[1756836387192,39.82,204.18,204.11,0.68]
[1756836387405,4.89620054,204.24,204.16,12.16018105]
[1756836387697,39.82,204.23,204.2,12.16018105]
[1756836387893,12.16018105,204.25,204.2,12.16018105]
[1756836388066,17.05571178,204.27,204.22,12.16018105]
[1756836388260,40.54,204.26,204.18,12.16018105]
[1756836388479,12.16018105,204.23,204.15,5.57815367]
[1756836388786,51.98018105,204.22,204.15,0.68]
[1756836388983,39.82,204.22,204.18,12.16018105]
[1756836389157,4.89645775,204.23,204.19,12.16018105]
[1756836389480,39.8,204.22,204.19,12.16018105]
[1756836389687,39.8,204.23,204.19,12.16018105]
[1756836390085,43.1325077,204.29,204.15,26.68]
[1756836390086,39.84,204.24,204.21,12.16018105]
[1756836390574,52.00018105,204.24,204.19,12.16018105]
[1756836390784,52.00018105,204.24,204.16,5.04021886]
[1756836390785,4.89630068,204.24,204.16,12.16018105]
[1756836390963,39.82,204.23,204.19,12.16018105]
[1756836391482,12.16018105,204.21,204.16,12.16018105]
[1756836391667,12.16018105,204.2,204.15,12.16018105]
[1756836391872,12.16018105,204.19,204.14,12.16018105]
[1756836392076,0.72,204.23,204.15,12.16018105]
[1756836392277,12.16018105,204.2,204.15,12.16018105]
[1756836392487,12.16018105,204.18,204.13,12.16018105]
[1756836392661,12.16018105,204.18,204.02,20.0]
[1756836392662,17.05840273,204.16,204.07,0.68]
[1756836392861,12.24262404,204.21,204.12,12.16018105]
[1756836393063,39.9,204.2,204.16,12.16018105]
[1756836393263,4.89596083,204.25,204.19,12.16018105]
[1756836393565,24.46902221,204.34,204.16,0.68]
[1756836393566,14.71850853,204.36,204.22,12.16018105]
[1756836393767,12.16018105,204.27,204.22,12.16018105]
[1756836394001,39.92,204.26,204.23,12.16018105]
[1756836394172,12.16018105,204.29,204.23,12.16018105]
[1756836394369,39.92,204.28,204.23,12.16018105]
[1756836394892,12.16018105,204.24,204.19,12.16018105]
[1756836395388,39.9,204.23,204.18,12.16018105]
[1756836395764,39.9,204.23,204.19,12.16018105]
[1756836396083,39.92,204.22,204.18,12.16018105]
[1756836396493,52.08018105,204.22,204.17,12.16018105]
[1756836397001,52.08018105,204.22,204.16,26.68]
[1756836397002,44.8167996,204.22,204.16,26.68]
[1756836397292,44.8167996,204.22,204.1,0.68]
[1756836397293,12.16018105,204.18,204.1,0.68]
[1756836397586,12.16018105,204.16,204.11,38.16018105]
[1756836397882,39.94,204.16,204.11,38.16018105]
[1756836398090,52.10018105,204.16,204.11,12.16018105]
[1756836398477,52.10018105,204.16,204.11,12.84018105]
[1756836398883,56.99846094,204.16,204.11,12.84018105]
[1756836399190,44.83827989,204.16,204.11,12.84018105]
[1756836399391,56.99846094,204.16,204.11,12.84018105]
[1756836399574,44.83827989,204.16,204.12,12.16018105]
[1756836400091,12.16018105,204.14,204.07,0.17216157]
[1756836400297,0.72,204.15,204.07,0.03]
[1756836400595,12.16018105,204.12,204.07,12.19018105]
[1756836400799,12.16018105,204.13,204.07,12.19018105]
[1756836400974,4.89907897,204.12,204.07,12.19018105]
[1756836401170,39.9,204.11,204.07,12.19018105]
[1756836401682,12.2452978,204.16,204.08,38.16018105]
[1756836401683,4.89835904,204.15,204.08,38.16018105]
[1756836402014,0.28432314,204.19,204.11,12.16018105]
[1756836402015,4.89763933,204.18,204.11,12.16018105]
[1756836402171,39.88,204.16,204.12,12.16018105]
[1756836402370,52.04018105,204.16,204.11,12.16018105]
[1756836402594,39.88,204.15,204.11,12.16018105]
[1756836402796,39.88,204.14,204.11,12.16018105]
[1756836403410,4.89847357,204.15,204.11,12.16018105]
[1756836403577,39.88,204.14,204.11,12.16018105]
[1756836403788,39.88,204.17,204.13,12.16018105]
[1756836403969,39.88,204.17,204.12,0.66]
[1756836404168,12.82018105,204.2,204.15,12.16018105]
[1756836404385,17.05710088,204.21,204.16,12.16018105]
[1756836404703,12.16018105,204.18,204.1,0.66]
[1756836404996,4.89691983,204.21,204.15,12.16018105]
[1756836404997,39.86,204.17,204.15,12.16018105]
[1756836405170,17.05710088,204.21,204.13,4.89879914]
[1756836405171,4.89694965,204.21,204.13,4.89879914]
[1756836405371,39.86,204.2,204.13,5.55879914]
[1756836405668,39.86,204.2,204.17,12.16018105]
[1756836406012,39.86,204.2,204.13,5.55879914]
[1756836406173,39.86,204.2,204.13,0.66]
[1756836406373,39.84,204.19,204.15,12.16018105]
[1756836406681,40.5,204.18,204.11,0.66]
[1756836406997,39.84,204.18,204.13,12.16018105]
[1756836407195,5.55804236,204.17,204.13,12.16018105]
[1756836407394,44.73767814,204.18,204.13,12.16018105]
[1756836407594,39.88,204.17,204.13,0.66]
[1756836407779,0.66,204.2,204.08,26.14216157]
[1756836407780,4.89740824,204.19,204.15,12.16018105]
[1756836407986,39.88,204.18,204.16,12.16018105]
[1756836408185,0.06,204.23,204.17,12.16018105]
[1756836408397,39.86,204.22,204.13,4.89881464]
[1756836408699,52.68018105,204.22,204.16,12.16018105]
[1756836408897,52.02018105,204.22,204.16,12.16018105]
[1756836409106,12.16018105,204.17,204.12,12.16018105]
[1756836409408,44.75789462,204.17,204.13,12.16018105]
[1756836410183,44.75789462,204.17,204.15,12.16018105]
[1756836410184,39.84,204.17,204.15,12.16018105]
[1756836410382,39.84,204.18,204.16,12.82018105]
[1756836410698,4.95646197,204.23,204.17,12.82018105]
[1756836410915,39.84,204.22,204.14,0.66]
[1756836411096,39.84,204.22,204.17,12.16018105]
[1756836411289,0.06,204.23,204.19,12.16018105]
[1756836411490,39.9,204.23,204.2,12.16018105]
[1756836411795,40.56,204.23,204.17,0.66]
[1756836412095,39.84,204.22,204.19,12.16018105]
[1756836412502,4.95652249,204.23,204.19,12.16018105]
[1756836412682,0.06,204.23,204.2,12.16018105]
[1756836412997,39.88,204.23,204.2,12.16018105]
[1756836413196,0.06,204.23,204.22,12.16018105]
[1756836413697,0.06,204.23,204.19,0.66]
[1756836413900,0.06,204.23,204.22,12.30234262]
[1756836414196,0.06,204.23,204.22,12.96234262]
[1756836414374,1e-08,204.23,204.22,17.22656985]
[1756836414572,18.96,204.35,204.26,0.14216157]
[1756836414791,18.96,204.35,204.34,12.16018105]
[1756836414990,18.96,204.35,204.29,26.0]
[1756836415186,0.06,204.37,204.32,4.89425264]
[1756836415398,36.56,204.38,204.35,12.16018105]
[1756836415577,12.16018105,204.36,204.28,0.66]
[1756836415902,12.16018105,204.34,204.29,12.16018105]
[1756836416076,12.16018105,204.32,204.24,26.0]
[1756836416281,0.66,204.33,204.28,12.16018105]
[1756836416599,12.82018105,204.33,204.27,12.16018105]
[1756836416798,52.90018105,204.33,204.28,12.16018105]
[1756836417199,0.66,204.32,204.28,12.16018105]
[1756836417506,4.89452302,204.31,204.27,8.06451673]
[1756836417675,4.89452302,204.31,204.28,8.06451673]
[1756836417879,40.08,204.33,204.28,8.06451673]
[1756836418096,48.80451673,204.33,204.28,8.06451673]
[1756836418294,40.74,204.33,204.28,8.06451673]
[1756836418485,40.06,204.33,204.29,0.66]
[1756836418689,0.66,204.36,204.32,8.06451673]
[1756836418894,40.04,204.36,204.33,8.06451673]
[1756836419105,40.7,204.36,204.33,8.06451673]
[1756836419308,0.06,204.35,204.33,8.06451673]
[1756836419501,0.06,204.35,204.34,8.06451673]
[1756836419809,0.06,204.35,204.34,8.72451673]
[1756836420314,0.06,204.35,204.34,8.8666783]
[1756836420694,0.06,204.35,204.34,21.87309071]
[1756836421216,0.06,204.35,204.34,22.01525228]
[1756836421519,0.06,204.38,204.37,31.31957077]
[1756836421688,0.06,204.38,204.37,39.3840875]
[1756836421889,0.06,204.38,204.37,40.0440875]
[1756836422184,0.06,204.4,204.38,0.42648471]
[1756836422405,0.06,204.4,204.39,9.15100144]
[1756836422719,0.06,204.42,204.41,26.42648471]
[1756836422884,0.06,204.42,204.41,34.49100144]
[1756836423223,0.06,204.53,204.42,0.14216157]
[1756836423385,0.06,204.53,204.51,8.06451673]
[1756836423585,0.66,204.52,204.46,0.14216157]
[1756836423915,0.66,204.52,204.51,8.06451673]
[1756836424079,0.66,204.52,204.46,0.14216157]
[1756836424279,0.06,204.53,204.46,27.08648471]
[1756836424483,0.66,204.52,204.46,26.14216157]
[1756836424681,0.06,204.53,204.43,0.14216157]
[1756836424682,0.66,204.51,204.43,0.14216157]
[1756836424908,0.66,204.51,204.49,8.06451673]
[1756836425588,5.54996818,204.51,204.49,8.06451673]
[1756836426985,0.06,204.53,204.44,0.66]
[1756836426986,4.94946945,204.53,204.5,8.06451673]
[1756836427305,0.28432314,204.5,204.38,8.06451673]
[1756836427491,8.06451673,204.43,204.37,8.06451673]
[1756836427690,4.89188924,204.42,204.37,8.06451673]
[1756836427891,4.89188924,204.42,204.36,0.66]
[1756836428084,13.61625497,204.43,204.38,8.06451673]
[1756836428289,8.72451673,204.42,204.36,8.06451673]
[1756836428587,8.06451673,204.38,204.33,8.72451673]
[1756836428808,8.06451673,204.37,204.32,8.06451673]
[1756836429003,0.66,204.42,204.36,8.06451673]
[1756836429313,8.06451673,204.38,204.32,8.06451673]
[1756836429490,8.06451673,204.38,204.35,26.0]
[1756836429684,8.72451673,204.4,204.35,26.0]
[1756836429889,0.28432314,204.47,204.35,26.0]
[1756836429890,4.89167681,204.43,204.38,8.06451673]
[1756836430088,0.66,204.42,204.34,31.03596293]
[1756836430397,0.66,204.42,204.38,8.06451673]
[1756836430596,8.06451673,204.44,204.34,31.69594933]
[1756836430597,8.06451673,204.44,204.39,8.06451673]
[1756836430798,0.66,204.43,204.39,8.06451673]
[1756836431105,0.66,204.43,204.4,8.06451673]
[1756836431313,0.66,204.43,204.35,0.28432314]
[1756836431518,0.66,204.43,204.39,8.06451673]
[1756836431696,8.06451673,204.41,204.36,8.06451673]
[1756836431892,12.95640597,204.42,204.37,8.06451673]
[1756836432200,8.06451673,204.4,204.35,8.06451673]
[1756836432601,0.65,204.4,204.35,34.06451673]
[1756836432793,0.65,204.39,204.35,26.0]
[1756836432996,8.71451673,204.39,204.35,26.0]
[1756836433326,0.65,204.39,204.35,34.06451673]
[1756836433927,12.95672356,204.41,204.35,34.06451673]
[1756836434224,12.95672356,204.41,204.36,8.06451673]
[1756836434424,12.95672356,204.41,204.35,26.0]
[1756836434641,8.71451673,204.4,204.35,8.06451673]
[1756836434802,8.71451673,204.4,204.34,26.0]
[1756836435131,0.65,204.45,204.39,8.06451673]
[1756836435300,0.65,204.45,204.41,8.06451673]
[1756836435499,0.65,204.44,204.4,8.06451673]
[1756836435719,8.06451673,204.45,204.4,8.06451673]
[1756836435925,5.54171927,204.43,204.39,8.06451673]
[1756836436106,8.06451673,204.41,204.35,0.72]
[1756836436302,8.06451673,204.41,204.36,8.06451673]
[1756836436505,8.71451673,204.4,204.35,8.06451673]
[1756836436835,8.71451673,204.4,204.35,34.06451673]
[1756836437007,0.65,204.45,204.39,8.06451673]
[1756836437323,0.65,204.45,204.43,8.06451673]
[1756836437526,8.06451673,204.49,204.4,0.14216157]
[1756836437693,0.65,204.49,204.46,8.06451673]
[1756836437893,5.54028411,204.49,204.46,8.06451673]
[1756836438121,0.65,204.48,204.44,8.06451673]
[1756836438317,0.65,204.48,204.45,8.06451673]
[1756836438524,0.65,204.47,204.45,8.06451673]
[1756836438695,4.89028411,204.49,204.45,8.06451673]
[1756836438895,0.65,204.48,204.45,8.06451673]
[1756836439297,0.71,204.48,204.45,8.06451673]
[1756836439717,0.71,204.48,204.47,8.06451673]
[1756836439718,0.06,204.48,204.47,8.06451673]
[1756836442603,0.06,204.48,204.47,13.67520974]
[1756836443214,0.06,204.48,204.47,8.78451673]
[1756836443519,0.06,204.48,204.47,8.9266783]
[1756836443697,0.06,204.48,204.47,13.81737131]
[1756836444897,0.06,204.48,204.47,22.16621118]
[1756836446215,0.06,204.53,204.51,0.28432314]
[1756836446521,0.06,204.53,204.52,9.21100144]
[1756836446700,0.06,204.56,204.55,26.28432314]
[1756836446898,0.06,204.56,204.55,34.34883987]
[1756836447108,0.06,204.56,204.55,35.21100144]
[1756836448823,0.06,204.56,204.55,80.11978168]
[1756836449122,0.06,204.58,204.56,0.14216157]
[1756836449318,0.06,204.58,204.57,9.21100144]
[1756836449516,0.06,204.58,204.57,29.21100144]
[1756836450820,0.06,204.58,204.57,34.09930373]
[1756836451613,0.06,204.58,204.53,0.72]
[1756836451800,0.06,204.58,204.57,8.06451673]
[1756836452124,0.65,204.57,204.47,5.61068867]
[1756836452426,0.65,204.57,204.36,40.38451673]
[1756836452427,8.06451673,204.54,204.4,4.8923679]
[1756836452626,0.65,204.53,204.49,8.06451673]
[1756836452810,8.06451673,204.54,204.41,39.96]
[1756836452811,0.65,204.56,204.52,8.06451673]
[1756836453017,0.06,204.58,204.55,8.06451673]
[1756836453223,0.65,204.56,204.54,8.06451673]
[1756836453730,4.94810094,204.58,204.54,8.06451673]
[1756836453913,0.65,204.55,204.52,8.06451673]
[1756836454228,0.65,204.54,204.51,8.06451673]
[1756836454424,0.65,204.53,204.51,8.06451673]
[1756836454604,0.65,204.53,204.49,26.0]
[1756836454605,0.65,204.52,204.49,8.06451673]
[1756836454801,0.65,204.52,204.49,34.06451673]
[1756836455007,0.65,204.55,204.51,8.06451673]
[1756836455208,0.65,204.54,204.51,8.06451673]
[1756836455606,12.28015837,204.58,204.51,8.06451673]
[1756836455832,0.65,204.53,204.51,8.06451673]
[1756836456131,0.65,204.55,204.51,8.06451673]
[1756836456321,0.65,204.54,204.52,8.06451673]
[1756836456519,5.53830229,204.57,204.53,8.06451673]
[1756836456727,0.65,204.56,204.54,8.06451673]
[1756836457030,4.88878024,204.55,204.52,8.06451673]
[1756836457208,5.53878024,204.55,204.52,8.06451673]
[1756836457409,0.65,204.54,204.52,8.06451673]
[1756836457716,0.65,204.54,204.51,8.06451673]
[1756836458031,0.65,204.54,204.5,0.14216157]
[1756836458032,4.88878024,204.55,204.52,8.06451673]
[1756836458226,0.65,204.57,204.54,8.06451673]
[1756836458445,0.65,204.57,204.55,8.06451673]
[1756836458728,0.06,204.56,204.54,8.06451673]
[1756836460610,0.06,204.56,204.55,8.06451673]
[1756836462717,0.06,204.56,204.55,34.8666783]
[1756836462918,0.06,204.56,204.55,14.03978168]
[1756836463120,0.06,204.58,204.56,0.42648471]
[1756836463331,0.06,204.58,204.57,8.8666783]
[1756836463534,0.06,204.58,204.57,5.69046386]
[1756836463738,0.06,204.58,204.57,21.81949732]
[1756836464432,0.2,204.63,204.6,26.0]
[1756836464638,0.2,204.63,204.62,8.2066783]
[1756836466437,0.2,204.63,204.62,13.0937861]
[1756836466646,0.2,204.63,204.62,14.03810924]
[1756836467144,0.2,204.63,204.62,9.15100144]
[1756836467345,0.2,204.63,204.58,12.21969326]
[1756836467346,0.87,204.63,204.58,39.76]
[1756836467542,0.87,204.63,204.6,8.06451673]
[1756836467844,0.87,204.63,204.61,26.0]
[1756836468834,0.87,204.63,204.61,34.06451673]
[1756836469150,0.2,204.63,204.61,34.06451673]
[1756836469521,0.87,204.63,204.59,0.14216157]
[1756836469748,0.87,204.63,204.6,26.0]
[1756836469958,0.67,204.62,204.52,0.66]
[1756836470164,8.06451673,204.61,204.55,8.06451673]
[1756836470454,8.06451673,204.58,204.52,8.06451673]
[1756836470624,0.67,204.57,204.53,8.06451673]
[1756836470824,0.67,204.56,204.53,34.06451673]
[1756836471127,8.06451673,204.57,204.52,8.06451673]
[1756836471435,0.67,204.56,204.52,8.06451673]
[1756836471636,5.55859875,204.56,204.52,8.06451673]
[1756836471841,5.55859875,204.56,204.53,8.06451673]
[1756836471842,0.67,204.56,204.53,8.06451673]
[1756836472736,4.88798528,204.59,204.55,8.06451673]
[1756836472937,5.55798528,204.59,204.55,8.06451673]
[1756836473243,0.67,204.58,204.55,8.06451673]
[1756836473441,0.67,204.57,204.55,8.06451673]
[1756836473742,5.55798528,204.59,204.55,8.06451673]
[1756836474040,8.73451673,204.58,204.53,34.2066783]
[1756836474646,8.73451673,204.58,204.53,26.14216157]
[1756836474853,13.6226362,204.58,204.53,34.2066783]
[1756836476244,0.87,204.63,204.57,8.06451673]
[1756836476448,0.87,204.63,204.56,26.66]
[1756836476658,0.2,204.63,204.59,8.06451673]
[1756836476830,13.15141088,204.63,204.58,8.06451673]
[1756836477028,8.73451673,204.62,204.57,34.06451673]
[1756836477234,8.06451673,204.62,204.57,34.06451673]
[1756836477441,0.67,204.61,204.57,26.0]
[1756836477633,0.67,204.61,204.57,34.06451673]
[1756836477834,13.15141088,204.63,204.58,8.06451673]
[1756836478044,13.82141088,204.63,204.58,8.06451673]
[1756836478857,13.15141088,204.63,204.57,26.0]
[1756836479055,8.06451673,204.58,204.53,8.09451673]
[1756836479243,5.08689415,204.63,204.53,8.09451673]
[1756836479244,8.06451673,204.6,204.55,8.06451673]
[1756836479441,12.80272814,204.61,204.56,12.13272814]
[1756836479644,5.08689415,204.63,204.56,12.13272814]
[1756836479645,12.13272814,204.62,204.57,12.13272814]
[1756836479833,12.80272814,204.62,204.57,12.13272814]
[1756836480154,12.80272814,204.62,204.56,0.66]
[1756836480345,17.6901872,204.61,204.56,12.13272814]
[1756836480657,17.6901872,204.61,204.53,26.03]
[1756836480658,12.13272814,204.57,204.53,26.03]
[1756836480855,12.13272814,204.54,204.53,0.03]
[1756836481355,12.80272814,204.54,204.53,0.03]
[1756836481659,0.67,204.54,204.53,0.03]
[1756836481857,12.80272814,204.54,204.53,0.03]
[1756836482655,0.67,204.57,204.53,0.03]
[1756836483041,12.80272814,204.56,204.53,0.03]
[1756836483241,12.13272814,204.54,204.53,0.03]
[1756836483754,12.80272814,204.54,204.53,0.03]
[1756836483957,12.13272814,204.56,204.53,0.03]
[1756836484134,0.67,204.57,204.53,0.03]
[1756836484331,12.80272814,204.57,204.53,0.03]
[1756836484537,0.2,204.63,204.53,0.03]
[1756836484737,12.80272814,204.57,204.53,0.03]
[1756836484939,44.6871078,204.62,204.53,0.03]
[1756836484940,12.13272814,204.56,204.53,26.03]
[1756836485546,0.67,204.58,204.53,38.16272814]
[1756836485760,12.13272814,204.59,204.53,38.16272814]
[1756836485983,12.13272814,204.59,204.53,38.82272814]
[1756836486168,12.13272814,204.59,204.54,12.13272814]
[1756836487266,12.80272814,204.58,204.53,38.16272814]
[1756836487466,12.13272814,204.55,204.53,0.03]
[1756836487648,0.67,204.61,204.53,0.03]
[1756836487965,12.13272814,204.57,204.53,0.03]
[1756836488354,12.80272814,204.56,204.53,0.03]
[1756836488551,12.13272814,204.54,204.53,0.03]
[1756836488742,17.0217474,204.54,204.53,0.03]
[1756836488944,17.6917474,204.54,204.53,0.03]
[1756836489262,12.80272814,204.54,204.53,0.03]
[1756836490369,0.67,204.57,204.53,0.03]
[1756836490582,5.5583434,204.57,204.53,0.03]
[1756836490865,12.13272814,204.55,204.53,0.03]
[1756836491561,0.68,204.59,204.53,0.03]
[1756836491865,0.68,204.59,204.54,38.27488971]
[1756836492060,12.13272814,204.59,204.54,26.14216157]
[1756836492242,4.88753272,204.61,204.54,26.0]
[1756836492243,12.13272814,204.57,204.54,26.0]
[1756836492441,12.81272814,204.56,204.53,0.03]
[1756836492644,12.13272814,204.56,204.53,0.03]
[1756836492856,0.68,204.59,204.53,0.03]
[1756836492857,12.13272814,204.58,204.53,0.03]
[1756836493070,0.68,204.58,204.53,0.03]
[1756836493371,12.81272814,204.58,204.53,0.03]
[1756836493542,12.13272814,204.58,204.53,0.74]
[1756836493746,12.81272814,204.58,204.53,0.03]
[1756836493969,12.13272814,204.59,204.54,12.13272814]
[1756836494568,12.81272814,204.58,204.53,12.87272814]
[1756836494965,12.81272814,204.57,204.53,0.03]
[1756836495468,0.68,204.57,204.5,0.03]
[1756836495674,12.13272814,204.51,204.5,0.03]
[1756836495844,12.81272814,204.51,204.5,0.03]
[1756836496751,17.70246458,204.51,204.5,0.03]
[1756836497376,17.98678772,204.51,204.5,0.03]
[1756836497672,17.98678772,204.51,204.48,0.03]
[1756836497673,26.0,204.49,204.48,0.03]
[1756836497967,38.13272814,204.49,204.48,0.03]
[1756836498185,38.81272814,204.49,204.48,0.03]
[1756836498851,43.98726596,204.49,204.48,1e-08]
[1756836500668,0.28432314,204.48,204.42,0.03]
[1756836500868,17.02437809,204.43,204.42,0.03]
[1756836501061,17.70437809,204.43,204.42,0.03]
[1756836501466,17.98870123,204.43,204.42,0.03]
[1756836501860,57.42437809,204.43,204.42,0.03]
[1756836502466,17.70437809,204.43,204.42,0.03]
[1756836502775,39.72,204.43,204.42,0.03]
[1756836502979,51.85272814,204.43,204.42,0.03]
[1756836503351,56.74437809,204.43,204.42,0.03]
[1756836503557,57.42437809,204.43,204.42,0.03]
[1756836503857,56.74437809,204.43,204.42,0.03]
[1756836504059,12.13272814,204.43,204.42,0.03]
[1756836504265,56.72437809,204.43,204.42,0.03]
[1756836504460,39.7,204.43,204.42,0.03]
[1756836504780,51.83272814,204.43,204.42,0.03]
[1756836505282,51.81272814,204.43,204.42,0.03]
[1756836505455,56.70437809,204.43,204.42,0.03]
[1756836506092,56.68437809,204.43,204.42,0.03]
[1756836506990,17.70437809,204.43,204.42,0.03]
[1756836507284,45.21164995,204.43,204.42,0.03]
[1756836507472,56.66437809,204.43,204.42,0.03]
[1756836507677,44.57164995,204.43,204.42,0.03]
[1756836507973,56.70437809,204.43,204.42,0.03]
[1756836508375,57.38437809,204.43,204.39,0.03]
[1756836508684,24.26545628,204.4,204.39,0.03]
[1756836509181,24.26545628,204.4,204.38,0.03]
[1756836509182,17.30965855,204.39,204.38,0.03]
[1756836509480,57.42533541,204.39,204.38,0.03]
[1756836509981,57.44533541,204.39,204.38,0.03]
[1756836510185,57.72965855,204.39,204.38,0.03]
[1756836510360,0.28432314,204.38,204.35,0.03]
[1756836510563,12.13272814,204.36,204.35,0.03]
[1756836510780,52.53272814,204.36,204.35,0.03]
[1756836511282,57.71037678,204.36,204.35,1e-08]
[1756836511579,4.89260727,204.39,204.35,0.71000001]
[1756836511786,4.89260727,204.39,204.35,1e-08]
[1756836511787,12.13272814,204.36,204.35,1e-08]
[1756836512086,12.90858796,204.44,204.36,0.74]
[1756836512260,12.13272814,204.4,204.36,0.74]
[1756836512668,51.91272814,204.39,204.36,0.74]
[1756836512869,12.13272814,204.38,204.36,0.74]
[1756836513706,56.80544939,204.39,204.36,0.74]
[1756836514186,12.13272814,204.38,204.36,0.74]
[1756836514376,4.89286336,204.38,204.36,0.03]
[1756836514581,17.0255915,204.38,204.36,0.03]
[1756836515090,12.81272814,204.37,204.36,0.03]
[1756836515270,5.57286336,204.38,204.36,0.03]
[1756836515473,12.13272814,204.37,204.36,0.03]
[1756836515787,5.57286336,204.38,204.36,0.03]
[1756836515788,4.89286336,204.38,204.36,0.03]
[1756836515997,51.91272814,204.37,204.36,0.03]
[1756836516287,57.4858142,204.37,204.36,0.03]
[1756836516487,0.68,204.41,204.36,0.03]
[1756836516694,51.91272814,204.4,204.36,0.03]
[1756836516990,39.78,204.39,204.36,0.03]
[1756836517188,12.13272814,204.38,204.36,0.03]
[1756836517374,51.91272814,204.39,204.36,0.74]
[1756836517572,51.91272814,204.39,204.36,0.03]
[1756836517774,12.13272814,204.37,204.36,0.03]
[1756836518389,17.7058142,204.37,204.36,0.03]
[1756836519190,5.57308606,204.37,204.36,0.03]
[1756836519484,17.7058142,204.37,204.36,0.03]
[1756836520262,17.0258142,204.37,204.36,0.03]
[1756836520467,44.65308606,204.37,204.36,0.03]
[1756836520761,56.7858142,204.37,204.36,0.03]
[1756836521175,17.0258142,204.37,204.36,0.03]
[1756836521789,39.76,204.37,204.36,0.7]
[1756836522093,12.93930546,204.43,204.36,0.7]
[1756836522094,39.76,204.39,204.36,0.7]
[1756836522293,0.71,204.46,204.37,0.67]
[1756836522474,12.13272814,204.42,204.37,12.80272814]
[1756836522791,12.13272814,204.47,204.41,12.13272814]
[1756836523093,12.13272814,204.45,204.4,0.67]
[1756836523274,12.13272814,204.42,204.37,26.67]
[1756836523510,12.13272814,204.41,204.37,26.67]
[1756836523675,39.8,204.42,204.38,12.80272814]
[1756836524082,39.8,204.42,204.39,0.67]
[1756836524290,12.13272814,204.44,204.39,12.80272814]
[1756836524590,4.8918904,204.42,204.39,12.80272814]
[1756836524969,4.8918904,204.42,204.39,0.67]
[1756836525378,4.8918904,204.42,204.36,0.03]
[1756836525379,12.13272814,204.4,204.36,0.03]
[1756836525581,12.13272814,204.38,204.36,0.03]
[1756836525998,51.93272814,204.39,204.36,0.03]